Department family,Entity,Date,Expense type,Expense area,Supplier,Transaction number,Amount
Department of Health,Leicestershire Partnership NHS Trust,02/11/20,Crs_NHS_LT1y -Resus Inventory Supplied.,Balance Sheet Collection,SUPPLY CHAIN CO LTD,1121127985,"30,809.44"
Department of Health,Leicestershire Partnership NHS Trust,02/11/20,Rent,"Syston Health Centre (New Building) (P127, LPT)",PHIP (5) LIMITED,LINV515870,"37,500.00"
Department of Health,Leicestershire Partnership NHS Trust,02/11/20,Nurse - Band 6 -Agency,CAMHS Waiting List Monies,HCL SOCIAL CARE,HWSI0000132,"23,987.38"
Department of Health,Leicestershire Partnership NHS Trust,02/11/20,Nurse - Band 6 -Agency,AMH - Central Access Point,HCL NURSING,HNSI0000523,"2,288.02"
Department of Health,Leicestershire Partnership NHS Trust,02/11/20,Nurse - Band 6 -Agency,Adult City East CMHT - Merlyn Vaz,HCL NURSING,HNSI0000523,"4,697.39"
Department of Health,Leicestershire Partnership NHS Trust,02/11/20,Nurse - Band 6 -Agency,Adult County Charnwood CMHT - Loughborough Base,HCL NURSING,HNSI0000523,"1,069.87"
Department of Health,Leicestershire Partnership NHS Trust,02/11/20,Nurse - Band 6 -Agency,Adult County West Leicestershire CMHT,HCL NURSING,HNSI0000523,"2,059.82"
Department of Health,Leicestershire Partnership NHS Trust,02/11/20,NURSE - BAND 2 - AGENCY,Agnes Unit Management,HCL NURSING,HNSI0000523,"7,822.25"
Department of Health,Leicestershire Partnership NHS Trust,02/11/20,NURSE - BAND 5 - AGENCY,Agnes Unit Management,HCL NURSING,HNSI0000523,"6,063.04"
Department of Health,Leicestershire Partnership NHS Trust,02/11/20,NURSE - BAND 2 - AGENCY,Ashby Ward (Bradgate Unit),HCL NURSING,HNSI0000523,879.21
Department of Health,Leicestershire Partnership NHS Trust,02/11/20,NURSE - BAND 5 - AGENCY,Ashby Ward (Bradgate Unit),HCL NURSING,HNSI0000523,"1,382.80"
Department of Health,Leicestershire Partnership NHS Trust,02/11/20,NURSE - BAND 5 - AGENCY,Aston Ward (Bradgate Unit),HCL NURSING,HNSI0000523,346.72
Department of Health,Leicestershire Partnership NHS Trust,02/11/20,NURSE - BAND 2 - AGENCY,Beaumont Ward - Bradgate Unit,HCL NURSING,HNSI0000523,174.73
Department of Health,Leicestershire Partnership NHS Trust,02/11/20,NURSE - BAND 5 - AGENCY,Beaumont Ward - Bradgate Unit,HCL NURSING,HNSI0000523,659.63
Department of Health,Leicestershire Partnership NHS Trust,02/11/20,NURSE - BAND 2 - AGENCY,Belvoir Psychiatric Intensive Care Unit,HCL NURSING,HNSI0000523,"2,495.15"
Department of Health,Leicestershire Partnership NHS Trust,02/11/20,NURSE - BAND 5 - AGENCY,Belvoir Psychiatric Intensive Care Unit,HCL NURSING,HNSI0000523,"1,098.72"
Department of Health,Leicestershire Partnership NHS Trust,02/11/20,Nurse - Band 6 -Agency,Crisis Resolution,HCL NURSING,HNSI0000523,"4,216.85"
Department of Health,Leicestershire Partnership NHS Trust,02/11/20,NURSE - BAND 2 - AGENCY,Griffin Ward (HPC),HCL NURSING,HNSI0000523,"1,118.33"
Department of Health,Leicestershire Partnership NHS Trust,02/11/20,NURSE - BAND 5 - AGENCY,Griffin Ward (HPC),HCL NURSING,HNSI0000523,"2,036.08"
Department of Health,Leicestershire Partnership NHS Trust,02/11/20,Nurse - Band 6 -Agency,Leicestershire Psych-oncology Service,HCL NURSING,HNSI0000523,213.98
Department of Health,Leicestershire Partnership NHS Trust,02/11/20,NURSE - BAND 2 - AGENCY,Maple Ward,HCL NURSING,HNSI0000523,244.82
Department of Health,Leicestershire Partnership NHS Trust,02/11/20,Nurse - Band 6 -Agency,Mental Health Triage Team,HCL NURSING,HNSI0000523,"1,608.04"
Department of Health,Leicestershire Partnership NHS Trust,02/11/20,NURSE - BAND 2 - AGENCY,Stewart House,HCL NURSING,HNSI0000523,248.65
Department of Health,Leicestershire Partnership NHS Trust,02/11/20,NURSE - BAND 2 - AGENCY,Watermead Ward (Bradgate Unit),HCL NURSING,HNSI0000523,676.27
Department of Health,Leicestershire Partnership NHS Trust,02/11/20,NURSE - BAND 5 - AGENCY,Watermead Ward (Bradgate Unit),HCL NURSING,HNSI0000523,"1,040.15"
Department of Health,Leicestershire Partnership NHS Trust,03/11/20,External Data Processing / Storage,Records & information Governance,H COATES LTD/TA C&V DATA,4003119,"31,685.98"
Department of Health,Leicestershire Partnership NHS Trust,03/11/20,Payroll Deductions -Salary Sacrifice Cars Scheme,Balance Sheet Collection,TUSKER,41209,"31,926.83"
Department of Health,Leicestershire Partnership NHS Trust,03/11/20,Payroll Deductions -Salary Sacrifice Cars Scheme,Balance Sheet Collection,TUSKER,37909,"31,376.63"
Department of Health,Leicestershire Partnership NHS Trust,03/11/20,Other Non-Medical Supplies & Services,Inter Unit I & E Distribution,UHL NHS TRUST (RWE),L0245709,"150,820.00"
Department of Health,Leicestershire Partnership NHS Trust,03/11/20,Landline Telephone Rental / Calls,Information Services,VIRGIN MEDIA BUSINESS,919266-123,"-36,045.02"
Department of Health,Leicestershire Partnership NHS Trust,04/11/20,CHP Estates Management,Merlyn Vaz Centre (CHP),COMM HLTH PARTNERSHIPS LTD,0060173017,"28,677.33"
Department of Health,Leicestershire Partnership NHS Trust,04/11/20,CHP Estates Management,Merlyn Vaz Centre (CHP),COMM HLTH PARTNERSHIPS LTD,0060173016,"31,975.24"
Department of Health,Leicestershire Partnership NHS Trust,04/11/20,Furniture & Fittings,COVID 19,PINEAPPLE CONTRACTS,SI/68410,"30,855.60"
Department of Health,Leicestershire Partnership NHS Trust,05/11/20,Unitary Payment,"The Agnes Unit (AKA Assessment and Treatment Centre) (P85, LPT)",ARDEN PARTNERSHIP (LEICESTER),SI0058,"119,503.88"
Department of Health,Leicestershire Partnership NHS Trust,05/11/20,Payroll Deductions -Home Electronics 49 Oct 20,Balance Sheet Collection,SME HCI LTD,133583,"29,203.20"
Department of Health,Leicestershire Partnership NHS Trust,06/11/20,WIP Project Not in BS - Furniture & Fittings,Work in Progress,TEAL FURNITURE LTD,T00048394,"29,070.00"
Department of Health,Leicestershire Partnership NHS Trust,06/11/20,Med Trainees - FY1,Medical Trainees,UHL NHS TRUST (RWE),L0245787,"25,903.76"
Department of Health,Leicestershire Partnership NHS Trust,09/11/20,Nurse - Band 6 -Agency,CAMHS Waiting List Monies,HCL SOCIAL CARE,HWSI0000140,"22,633.72"
Department of Health,Leicestershire Partnership NHS Trust,09/11/20,Nurse - Band 6 -Agency,AMH - Central Access Point,HCL NURSING,HNSI0000529,"2,759.55"
Department of Health,Leicestershire Partnership NHS Trust,09/11/20,NURSE - BAND 2 - AGENCY,Acacia (Willows),HCL NURSING,HNSI0000529,886.12
Department of Health,Leicestershire Partnership NHS Trust,09/11/20,NURSE - BAND 5 - AGENCY,Acacia (Willows),HCL NURSING,HNSI0000529,370.38
Department of Health,Leicestershire Partnership NHS Trust,09/11/20,Nurse - Band 6 -Agency,Adult City East CMHT - Merlyn Vaz,HCL NURSING,HNSI0000529,"4,530.73"
Department of Health,Leicestershire Partnership NHS Trust,09/11/20,Nurse - Band 6 -Agency,Adult County Charnwood CMHT - Loughborough Base,HCL NURSING,HNSI0000529,"1,069.88"
Department of Health,Leicestershire Partnership NHS Trust,09/11/20,Nurse - Band 6 -Agency,Adult County West Leicestershire CMHT,HCL NURSING,HNSI0000529,"1,069.88"
Department of Health,Leicestershire Partnership NHS Trust,09/11/20,NURSE - BAND 2 - AGENCY,Agnes Unit Management,HCL NURSING,HNSI0000529,"4,787.52"
Department of Health,Leicestershire Partnership NHS Trust,09/11/20,NURSE - BAND 5 - AGENCY,Agnes Unit Management,HCL NURSING,HNSI0000529,"4,592.49"
Department of Health,Leicestershire Partnership NHS Trust,09/11/20,NURSE - BAND 2 - AGENCY,Ashby Ward (Bradgate Unit),HCL NURSING,HNSI0000529,827.81
Department of Health,Leicestershire Partnership NHS Trust,09/11/20,NURSE - BAND 5 - AGENCY,Ashby Ward (Bradgate Unit),HCL NURSING,HNSI0000529,659.63
Department of Health,Leicestershire Partnership NHS Trust,09/11/20,NURSE - BAND 2 - AGENCY,Aston Ward (Bradgate Unit),HCL NURSING,HNSI0000529,857.78
Department of Health,Leicestershire Partnership NHS Trust,09/11/20,NURSE - BAND 5 - AGENCY,Aston Ward (Bradgate Unit),HCL NURSING,HNSI0000529,"1,743.51"
Department of Health,Leicestershire Partnership NHS Trust,09/11/20,NURSE - BAND 2 - AGENCY,Beaumont Ward - Bradgate Unit,HCL NURSING,HNSI0000529,"1,822.11"
Department of Health,Leicestershire Partnership NHS Trust,09/11/20,NURSE - BAND 2 - AGENCY,Belvoir Psychiatric Intensive Care Unit,HCL NURSING,HNSI0000529,"1,830.07"
Department of Health,Leicestershire Partnership NHS Trust,09/11/20,NURSE - BAND 5 - AGENCY,Belvoir Psychiatric Intensive Care Unit,HCL NURSING,HNSI0000529,679.92
Department of Health,Leicestershire Partnership NHS Trust,09/11/20,Nurse - Band 6 -Agency,Crisis Resolution,HCL NURSING,HNSI0000529,"1,496.78"
Department of Health,Leicestershire Partnership NHS Trust,09/11/20,NURSE - BAND 2 - AGENCY,Griffin Ward (HPC),HCL NURSING,HNSI0000529,905.05
Department of Health,Leicestershire Partnership NHS Trust,09/11/20,NURSE - BAND 5 - AGENCY,Griffin Ward (HPC),HCL NURSING,HNSI0000529,"2,400.64"
Department of Health,Leicestershire Partnership NHS Trust,09/11/20,Nurse - Band 6 -Agency,Leicestershire Psych-oncology Service,HCL NURSING,HNSI0000529,641.93
Department of Health,Leicestershire Partnership NHS Trust,09/11/20,NURSE - BAND 2 - AGENCY,Maple Ward,HCL NURSING,HNSI0000529,223.60
Department of Health,Leicestershire Partnership NHS Trust,09/11/20,Nurse - Band 6 -Agency,Mental Health Triage Team,HCL NURSING,HNSI0000529,278.19
Department of Health,Leicestershire Partnership NHS Trust,09/11/20,NURSE - BAND 2 - AGENCY,Mill Lodge,HCL NURSING,HNSI0000529,378.24
Department of Health,Leicestershire Partnership NHS Trust,09/11/20,NURSE - BAND 2 - AGENCY,Stewart House,HCL NURSING,HNSI0000529,186.02
Department of Health,Leicestershire Partnership NHS Trust,09/11/20,NURSE - BAND 5 - AGENCY,Stewart House,HCL NURSING,HNSI0000529,987.06
Department of Health,Leicestershire Partnership NHS Trust,09/11/20,NURSE - BAND 2 - AGENCY,Thornton Ward - Bradgate Unit,HCL NURSING,HNSI0000529,174.73
Department of Health,Leicestershire Partnership NHS Trust,09/11/20,NURSE - BAND 2 - AGENCY,Watermead Ward (Bradgate Unit),HCL NURSING,HNSI0000529,277.94
Department of Health,Leicestershire Partnership NHS Trust,09/11/20,WIP Project Not in BS - Buildings excl Dwellings,Work in Progress,INTERSERVE CONSTRUCTION LTD,TMP000885,"38,109.91"
Department of Health,Leicestershire Partnership NHS Trust,09/11/20,HR / Payroll Services,HR Employment Services,LINCOLNSHIRE PART NHSFT(RP7),2000020961,"29,360.83"
Department of Health,Leicestershire Partnership NHS Trust,09/11/20,Crs_NHS_LT1y -Resus Inventory Supplied.,Balance Sheet Collection,SUPPLY CHAIN CO LTD,1121132146,"28,484.46"
Department of Health,Leicestershire Partnership NHS Trust,11/11/20,Network Costs - WAN Maint,HIS Infrastructure,VIRGIN MEDIA BUSINESS,262421-174,"42,752.09"
Department of Health,Leicestershire Partnership NHS Trust,12/11/20,FP10'S,Adult City Drugs,NHS BUS SERVICES AUTHORITY,1000066854,"11,155.21"
Department of Health,Leicestershire Partnership NHS Trust,12/11/20,FP10'S,Adult County Drugs,NHS BUS SERVICES AUTHORITY,1000066854,"32,442.68"
Department of Health,Leicestershire Partnership NHS Trust,12/11/20,FP10'S,CAMHS Outpatients,NHS BUS SERVICES AUTHORITY,1000066854,"10,740.60"
Department of Health,Leicestershire Partnership NHS Trust,12/11/20,FP10'S,Children Services Medical,NHS BUS SERVICES AUTHORITY,1000066854,"5,511.39"
Department of Health,Leicestershire Partnership NHS Trust,12/11/20,FP10'S,Dementia Related Drugs and Investigations,NHS BUS SERVICES AUTHORITY,1000066854,"3,795.21"
Department of Health,Leicestershire Partnership NHS Trust,12/11/20,FP10'S,Eating Disorders Outpatient Service,NHS BUS SERVICES AUTHORITY,1000066854,"1,764.48"
Department of Health,Leicestershire Partnership NHS Trust,12/11/20,FP10'S,Forensic Services - Community,NHS BUS SERVICES AUTHORITY,1000066854,161.24
Department of Health,Leicestershire Partnership NHS Trust,12/11/20,FP10'S,LOROS Pharmacy,NHS BUS SERVICES AUTHORITY,1000066854,126.99
Department of Health,Leicestershire Partnership NHS Trust,12/11/20,FP10'S,Leicestershire Psych-oncology Service,NHS BUS SERVICES AUTHORITY,1000066854,85.50
Department of Health,Leicestershire Partnership NHS Trust,12/11/20,FP10'S,Liason Psychiatry Service,NHS BUS SERVICES AUTHORITY,1000066854,172.09
Department of Health,Leicestershire Partnership NHS Trust,12/11/20,FP10'S,Lough Swithland Ward,NHS BUS SERVICES AUTHORITY,1000066854,11.31
Department of Health,Leicestershire Partnership NHS Trust,12/11/20,FP10'S,PIER Team - Early Intervention Services,NHS BUS SERVICES AUTHORITY,1000066854,"12,289.81"
Department of Health,Leicestershire Partnership NHS Trust,12/11/20,FP10'S,Snr Med Staff (Inc Med Reps),NHS BUS SERVICES AUTHORITY,1000066854,"5,659.83"
Department of Health,Leicestershire Partnership NHS Trust,13/11/20,Insurance Costs,Chief Executives Office,NHS LITIGATION AUTHORITY,SICX403631,"141,476.10"
Department of Health,Leicestershire Partnership NHS Trust,16/11/20,Drugs,Adult City Drugs,JANSSEN-CILAG LTD,930697291,"11,922.03"
Department of Health,Leicestershire Partnership NHS Trust,16/11/20,Drugs,Adult County Drugs,JANSSEN-CILAG LTD,930697291,"17,883.04"
Department of Health,Leicestershire Partnership NHS Trust,16/11/20,NURSE - BAND 2 - AGENCY,Beechwood Ward,HCL NURSING,HNSI0000524,"4,072.81"
Department of Health,Leicestershire Partnership NHS Trust,16/11/20,NURSE - BAND 5 - AGENCY,Beechwood Ward,HCL NURSING,HNSI0000524,"2,851.99"
Department of Health,Leicestershire Partnership NHS Trust,16/11/20,NURSE - BAND 5 - AGENCY,City Planned Care - East,HCL NURSING,HNSI0000524,"16,901.63"
Department of Health,Leicestershire Partnership NHS Trust,16/11/20,NURSE - BAND 5 - AGENCY,City Planned Care - West,HCL NURSING,HNSI0000524,"10,725.61"
Department of Health,Leicestershire Partnership NHS Trust,16/11/20,Nurse - Band 6 -Agency,City West CMHT MHSOP,HCL NURSING,HNSI0000524,"3,162.20"
Department of Health,Leicestershire Partnership NHS Trust,16/11/20,NURSE - BAND 2 - AGENCY,Clarendon Ward,HCL NURSING,HNSI0000524,819.77
Department of Health,Leicestershire Partnership NHS Trust,16/11/20,NURSE - BAND 5 - AGENCY,Clarendon Ward,HCL NURSING,HNSI0000524,853.65
Department of Health,Leicestershire Partnership NHS Trust,16/11/20,NURSE - BAND 2 - AGENCY,Coalville Snibston Ward,HCL NURSING,HNSI0000524,453.64
Department of Health,Leicestershire Partnership NHS Trust,16/11/20,NURSE - BAND 2 - AGENCY,Coalville Ward 2,HCL NURSING,HNSI0000524,964.60
Department of Health,Leicestershire Partnership NHS Trust,16/11/20,NURSE - BAND 5 - AGENCY,Coalville Ward 4,HCL NURSING,HNSI0000524,990.22
Department of Health,Leicestershire Partnership NHS Trust,16/11/20,NURSE - BAND 2 - AGENCY,Coleman Ward,HCL NURSING,HNSI0000524,"4,100.71"
Department of Health,Leicestershire Partnership NHS Trust,16/11/20,NURSE - BAND 5 - AGENCY,Coleman Ward,HCL NURSING,HNSI0000524,"4,005.30"
Department of Health,Leicestershire Partnership NHS Trust,16/11/20,NURSE - BAND 5 - AGENCY,"East Planned Care - Oadby,Wigston & Harborough",HCL NURSING,HNSI0000524,"1,821.90"
Department of Health,Leicestershire Partnership NHS Trust,16/11/20,NURSE - BAND 2 - AGENCY,Gwendolen Ward,HCL NURSING,HNSI0000524,"1,353.82"
Department of Health,Leicestershire Partnership NHS Trust,16/11/20,NURSE - BAND 5 - AGENCY,Gwendolen Ward,HCL NURSING,HNSI0000524,"3,940.15"
Department of Health,Leicestershire Partnership NHS Trust,16/11/20,NURSE - BAND 2 - AGENCY,H&B Comm Hosp East Ward,HCL NURSING,HNSI0000524,518.84
Department of Health,Leicestershire Partnership NHS Trust,16/11/20,NURSE - BAND 5 - AGENCY,H&B Comm Hosp East Ward,HCL NURSING,HNSI0000524,119.88
Department of Health,Leicestershire Partnership NHS Trust,16/11/20,NURSE - BAND 2 - AGENCY,Kirby Ward,HCL NURSING,HNSI0000524,114.91
Department of Health,Leicestershire Partnership NHS Trust,16/11/20,NURSE - BAND 5 - AGENCY,Kirby Ward,HCL NURSING,HNSI0000524,565.88
Department of Health,Leicestershire Partnership NHS Trust,16/11/20,NURSE - BAND 5 - AGENCY,Lough Swithland Ward,HCL NURSING,HNSI0000524,"1,641.26"
Department of Health,Leicestershire Partnership NHS Trust,16/11/20,NURSE - BAND 2 - AGENCY,Rutland Ward Nursing,HCL NURSING,HNSI0000524,213.27
Department of Health,Leicestershire Partnership NHS Trust,16/11/20,NURSE - BAND 5 - AGENCY,Rutland Ward Nursing,HCL NURSING,HNSI0000524,"1,637.65"
Department of Health,Leicestershire Partnership NHS Trust,16/11/20,NURSE - BAND 2 - AGENCY,St Lukes Stroke Ward,HCL NURSING,HNSI0000524,641.92
Department of Health,Leicestershire Partnership NHS Trust,16/11/20,NURSE - BAND 5 - AGENCY,St Lukes Stroke Ward,HCL NURSING,HNSI0000524,-54.81
Department of Health,Leicestershire Partnership NHS Trust,16/11/20,NURSE - BAND 2 - AGENCY,St Lukes Ward 3,HCL NURSING,HNSI0000524,556.94
Department of Health,Leicestershire Partnership NHS Trust,16/11/20,NURSE - BAND 5 - AGENCY,St Lukes Ward 3,HCL NURSING,HNSI0000524,"4,976.45"
Department of Health,Leicestershire Partnership NHS Trust,16/11/20,NURSE - BAND 2 - AGENCY,Wakerley Ward,HCL NURSING,HNSI0000524,195.47
Department of Health,Leicestershire Partnership NHS Trust,16/11/20,NURSE - BAND 5 - AGENCY,Wakerley Ward,HCL NURSING,HNSI0000524,"3,327.61"
Department of Health,Leicestershire Partnership NHS Trust,16/11/20,NURSE - BAND 5 - AGENCY,West Planned Care  - Charnwood Hub,HCL NURSING,HNSI0000524,959.15
Department of Health,Leicestershire Partnership NHS Trust,16/11/20,Nurse - Band 6 -Agency,AMH - Central Access Point,HCL NURSING,HNSI0000536,"1,380.77"
Department of Health,Leicestershire Partnership NHS Trust,16/11/20,NURSE - BAND 2 - AGENCY,Acacia (Willows),HCL NURSING,HNSI0000536,524.19
Department of Health,Leicestershire Partnership NHS Trust,16/11/20,NURSE - BAND 5 - AGENCY,Acacia (Willows),HCL NURSING,HNSI0000536,426.71
Department of Health,Leicestershire Partnership NHS Trust,16/11/20,Nurse - Band 6 -Agency,Adult City East CMHT - Merlyn Vaz,HCL NURSING,HNSI0000536,"4,681.16"
Department of Health,Leicestershire Partnership NHS Trust,16/11/20,Nurse - Band 6 -Agency,Adult County Charnwood CMHT - Loughborough Base,HCL NURSING,HNSI0000536,"1,925.94"
Department of Health,Leicestershire Partnership NHS Trust,16/11/20,Nurse - Band 6 -Agency,Adult County West Leicestershire CMHT,HCL NURSING,HNSI0000536,"1,069.97"
Department of Health,Leicestershire Partnership NHS Trust,16/11/20,NURSE - BAND 2 - AGENCY,Agnes Unit Management,HCL NURSING,HNSI0000536,"4,082.21"
Department of Health,Leicestershire Partnership NHS Trust,16/11/20,NURSE - BAND 5 - AGENCY,Agnes Unit Management,HCL NURSING,HNSI0000536,"5,622.60"
Department of Health,Leicestershire Partnership NHS Trust,16/11/20,NURSE - BAND 2 - AGENCY,Ashby Ward (Bradgate Unit),HCL NURSING,HNSI0000536,516.35
Department of Health,Leicestershire Partnership NHS Trust,16/11/20,NURSE - BAND 5 - AGENCY,Ashby Ward (Bradgate Unit),HCL NURSING,HNSI0000536,"1,473.68"
Department of Health,Leicestershire Partnership NHS Trust,16/11/20,NURSE - BAND 2 - AGENCY,Aston Ward (Bradgate Unit),HCL NURSING,HNSI0000536,752.50
Department of Health,Leicestershire Partnership NHS Trust,16/11/20,NURSE - BAND 5 - AGENCY,Aston Ward (Bradgate Unit),HCL NURSING,HNSI0000536,329.84
Department of Health,Leicestershire Partnership NHS Trust,16/11/20,NURSE - BAND 2 - AGENCY,Beaumont Ward - Bradgate Unit,HCL NURSING,HNSI0000536,"1,482.38"
Department of Health,Leicestershire Partnership NHS Trust,16/11/20,NURSE - BAND 5 - AGENCY,Beaumont Ward - Bradgate Unit,HCL NURSING,HNSI0000536,"1,444.40"
Department of Health,Leicestershire Partnership NHS Trust,16/11/20,NURSE - BAND 2 - AGENCY,Belvoir Psychiatric Intensive Care Unit,HCL NURSING,HNSI0000536,904.84
Department of Health,Leicestershire Partnership NHS Trust,16/11/20,NURSE - BAND 5 - AGENCY,Belvoir Psychiatric Intensive Care Unit,HCL NURSING,HNSI0000536,"1,370.98"
Department of Health,Leicestershire Partnership NHS Trust,16/11/20,Nurse - Band 6 -Agency,Crisis Resolution,HCL NURSING,HNSI0000536,"6,330.43"
Department of Health,Leicestershire Partnership NHS Trust,16/11/20,NURSE - BAND 2 - AGENCY,Griffin Ward (HPC),HCL NURSING,HNSI0000536,"1,414.69"
Department of Health,Leicestershire Partnership NHS Trust,16/11/20,NURSE - BAND 5 - AGENCY,Griffin Ward (HPC),HCL NURSING,HNSI0000536,"1,222.21"
Department of Health,Leicestershire Partnership NHS Trust,16/11/20,NURSE - BAND 2 - AGENCY,Heather Ward,HCL NURSING,HNSI0000536,775.98
Department of Health,Leicestershire Partnership NHS Trust,16/11/20,NURSE - BAND 5 - AGENCY,Heather Ward,HCL NURSING,HNSI0000536,426.71
Department of Health,Leicestershire Partnership NHS Trust,16/11/20,NURSE - BAND 5 - AGENCY,Maple Ward,HCL NURSING,HNSI0000536,339.98
Department of Health,Leicestershire Partnership NHS Trust,16/11/20,Nurse - Band 6 -Agency,Mental Health Triage Team,HCL NURSING,HNSI0000536,"1,418.97"
Department of Health,Leicestershire Partnership NHS Trust,16/11/20,NURSE - BAND 2 - AGENCY,Mill Lodge,HCL NURSING,HNSI0000536,132.30
Department of Health,Leicestershire Partnership NHS Trust,16/11/20,NURSE - BAND 5 - AGENCY,Mill Lodge,HCL NURSING,HNSI0000536,287.94
Department of Health,Leicestershire Partnership NHS Trust,16/11/20,NURSE - BAND 2 - AGENCY,Phoenix Ward (HPC),HCL NURSING,HNSI0000536,174.73
Department of Health,Leicestershire Partnership NHS Trust,16/11/20,NURSE - BAND 2 - AGENCY,Stewart House,HCL NURSING,HNSI0000536,360.34
Department of Health,Leicestershire Partnership NHS Trust,16/11/20,NURSE - BAND 5 - AGENCY,Stewart House,HCL NURSING,HNSI0000536,287.94
Department of Health,Leicestershire Partnership NHS Trust,16/11/20,NURSE - BAND 2 - AGENCY,Sycamore (Willows),HCL NURSING,HNSI0000536,835.18
Department of Health,Leicestershire Partnership NHS Trust,16/11/20,NURSE - BAND 5 - AGENCY,Sycamore (Willows),HCL NURSING,HNSI0000536,"1,631.14"
Department of Health,Leicestershire Partnership NHS Trust,16/11/20,NURSE - BAND 2 - AGENCY,Watermead Ward (Bradgate Unit),HCL NURSING,HNSI0000536,463.93
Department of Health,Leicestershire Partnership NHS Trust,16/11/20,NURSE - BAND 5 - AGENCY,Watermead Ward (Bradgate Unit),HCL NURSING,HNSI0000536,739.65
Department of Health,Leicestershire Partnership NHS Trust,16/11/20,Crs_NHS_LT1y -Resus Inventory Supplied.,Balance Sheet Collection,SUPPLY CHAIN CO LTD,1121136484,"27,961.06"
Department of Health,Leicestershire Partnership NHS Trust,16/11/20,Landline Telephone Rental / Calls,"Beaumont Leys Health Centre (P94, LPT)",VIRGIN MEDIA BUSINESS,853083001/004/1120,389.83
Department of Health,Leicestershire Partnership NHS Trust,16/11/20,Landline Telephone Rental / Calls,Belgrave Health Centre (CHP),VIRGIN MEDIA BUSINESS,853083001/004/1120,314.47
Department of Health,Leicestershire Partnership NHS Trust,16/11/20,Landline Telephone Rental / Calls,"Bennion Centre (including Forest Grange Day Unit) (P8, LPT)",VIRGIN MEDIA BUSINESS,853083001/004/1120,7.74
Department of Health,Leicestershire Partnership NHS Trust,16/11/20,Landline Telephone Rental / Calls,"Bradgate Unit (including Glenvale day Unit) (P7, LPT)",VIRGIN MEDIA BUSINESS,853083001/004/1120,"9,139.31"
Department of Health,Leicestershire Partnership NHS Trust,16/11/20,Landline Telephone Rental / Calls,Braunstone Health and Social Care Centre (Part) (PROPCO),VIRGIN MEDIA BUSINESS,853083001/004/1120,"1,108.03"
Department of Health,Leicestershire Partnership NHS Trust,16/11/20,Landline Telephone Rental / Calls,Bridge Park Plaza - First Floor (LPT),VIRGIN MEDIA BUSINESS,853083001/004/1120,"4,948.34"
Department of Health,Leicestershire Partnership NHS Trust,16/11/20,Landline Telephone Rental / Calls,"Coalville Community Hospital (P138, LPT)",VIRGIN MEDIA BUSINESS,853083001/004/1120,"1,543.67"
Department of Health,Leicestershire Partnership NHS Trust,16/11/20,Landline Telephone Rental / Calls,"Coalville Health Centre (P121, LPT)",VIRGIN MEDIA BUSINESS,853083001/004/1120,163.25
Department of Health,Leicestershire Partnership NHS Trust,16/11/20,Landline Telephone Rental / Calls,County Hall,VIRGIN MEDIA BUSINESS,853083001/004/1120,"1,156.40"
Department of Health,Leicestershire Partnership NHS Trust,16/11/20,Landline Telephone Rental / Calls,Estates & Facilities Central,VIRGIN MEDIA BUSINESS,853083001/004/1120,"5,453.67"
Department of Health,Leicestershire Partnership NHS Trust,16/11/20,Landline Telephone Rental / Calls,"Evington Centre (P6, LPT)",VIRGIN MEDIA BUSINESS,853083001/004/1120,"1,923.30"
Department of Health,Leicestershire Partnership NHS Trust,16/11/20,Landline Telephone Rental / Calls,HIS,VIRGIN MEDIA BUSINESS,853083001/004/1120,"3,472.63"
Department of Health,Leicestershire Partnership NHS Trust,16/11/20,Landline Telephone Rental / Calls,"Hawthorne Centre - Coalville (P14, LPT)",VIRGIN MEDIA BUSINESS,853083001/004/1120,600.04
Department of Health,Leicestershire Partnership NHS Trust,16/11/20,Landline Telephone Rental / Calls,Hinckley & District Hospital (PROPCO),VIRGIN MEDIA BUSINESS,853083001/004/1120,"1,365.16"
Department of Health,Leicestershire Partnership NHS Trust,16/11/20,Landline Telephone Rental / Calls,"Hinckley and Bosworth Community Hospital (Sunnyside) (P133, LPT)",VIRGIN MEDIA BUSINESS,853083001/004/1120,"1,055.81"
Department of Health,Leicestershire Partnership NHS Trust,16/11/20,Landline Telephone Rental / Calls,Hood Park Leisure Centre Clinic,VIRGIN MEDIA BUSINESS,853083001/004/1120,23.22
Department of Health,Leicestershire Partnership NHS Trust,16/11/20,Landline Telephone Rental / Calls,"Hynca Lodge (P33, LPT)",VIRGIN MEDIA BUSINESS,853083001/004/1120,811.08
Department of Health,Leicestershire Partnership NHS Trust,16/11/20,Landline Telephone Rental / Calls,"Legion House, Ashby",VIRGIN MEDIA BUSINESS,853083001/004/1120,52.54
Department of Health,Leicestershire Partnership NHS Trust,16/11/20,Landline Telephone Rental / Calls,Loughborough Health Centre (PROPCO),VIRGIN MEDIA BUSINESS,853083001/004/1120,9.28
Department of Health,Leicestershire Partnership NHS Trust,16/11/20,Landline Telephone Rental / Calls,"Loughborough Hospital (P136, LPT)",VIRGIN MEDIA BUSINESS,853083001/004/1120,"5,042.57"
Department of Health,Leicestershire Partnership NHS Trust,16/11/20,Landline Telephone Rental / Calls,Mawson House (LPT),VIRGIN MEDIA BUSINESS,853083001/004/1120,534.98
Department of Health,Leicestershire Partnership NHS Trust,16/11/20,Landline Telephone Rental / Calls,Melbourne Centre (Pt Grnd flr) (PROPCO),VIRGIN MEDIA BUSINESS,853083001/004/1120,6.45
Department of Health,Leicestershire Partnership NHS Trust,16/11/20,Landline Telephone Rental / Calls,Melton Mowbray Hospital (previously St. Mary's) (PROPCO),VIRGIN MEDIA BUSINESS,853083001/004/1120,"1,700.88"
Department of Health,Leicestershire Partnership NHS Trust,16/11/20,Landline Telephone Rental / Calls,Merlyn Vaz Centre (CHP),VIRGIN MEDIA BUSINESS,853083001/004/1120,"1,552.72"
Department of Health,Leicestershire Partnership NHS Trust,16/11/20,Landline Telephone Rental / Calls,"Mett Centre (P49, LPT)",VIRGIN MEDIA BUSINESS,853083001/004/1120,78.91
Department of Health,Leicestershire Partnership NHS Trust,16/11/20,Landline Telephone Rental / Calls,NSPCC Training Cente,VIRGIN MEDIA BUSINESS,853083001/004/1120,159.96
Department of Health,Leicestershire Partnership NHS Trust,16/11/20,Landline Telephone Rental / Calls,New Parks Health Centre (PROPCO),VIRGIN MEDIA BUSINESS,853083001/004/1120,"1,545.48"
Department of Health,Leicestershire Partnership NHS Trust,16/11/20,Landline Telephone Rental / Calls,"OSL House (P54, LPT)",VIRGIN MEDIA BUSINESS,853083001/004/1120,"1,038.77"
Department of Health,Leicestershire Partnership NHS Trust,16/11/20,Landline Telephone Rental / Calls,"Orchard Resource Centre (P15, LPT)",VIRGIN MEDIA BUSINESS,853083001/004/1120,820.91
Department of Health,Leicestershire Partnership NHS Trust,16/11/20,Landline Telephone Rental / Calls,Pasley Road Health Centre (PROPCO),VIRGIN MEDIA BUSINESS,853083001/004/1120,134.00
Department of Health,Leicestershire Partnership NHS Trust,16/11/20,Landline Telephone Rental / Calls,"Prince Philip House (P96, LPT)",VIRGIN MEDIA BUSINESS,853083001/004/1120,"1,584.17"
Department of Health,Leicestershire Partnership NHS Trust,16/11/20,Landline Telephone Rental / Calls,Rushey Mead Health Centre (PROPCO),VIRGIN MEDIA BUSINESS,853083001/004/1120,86.48
Department of Health,Leicestershire Partnership NHS Trust,16/11/20,Landline Telephone Rental / Calls,"Shepshed Health Centre (P123, LPT)",VIRGIN MEDIA BUSINESS,853083001/004/1120,11.57
Department of Health,Leicestershire Partnership NHS Trust,16/11/20,Landline Telephone Rental / Calls,"St Peters Health Center (Part 1st and 2nd floors) (P66, LPT)",VIRGIN MEDIA BUSINESS,853083001/004/1120,"2,107.34"
Department of Health,Leicestershire Partnership NHS Trust,16/11/20,Landline Telephone Rental / Calls,"Stewart House (P61, LPT)",VIRGIN MEDIA BUSINESS,853083001/004/1120,7.74
Department of Health,Leicestershire Partnership NHS Trust,16/11/20,Landline Telephone Rental / Calls,"Swithland House - London Road 352 (P44, LPT)",VIRGIN MEDIA BUSINESS,853083001/004/1120,474.36
Department of Health,Leicestershire Partnership NHS Trust,16/11/20,Landline Telephone Rental / Calls,"The Cedars (P19, LPT)",VIRGIN MEDIA BUSINESS,853083001/004/1120,894.60
Department of Health,Leicestershire Partnership NHS Trust,16/11/20,Landline Telephone Rental / Calls,"The Willows - Cordelia Close (P22, LPT)",VIRGIN MEDIA BUSINESS,853083001/004/1120,524.69
Department of Health,Leicestershire Partnership NHS Trust,16/11/20,Landline Telephone Rental / Calls,Uppingham Road Health Centre (PROPCO),VIRGIN MEDIA BUSINESS,853083001/004/1120,234.92
Department of Health,Leicestershire Partnership NHS Trust,16/11/20,Landline Telephone Rental / Calls,"Valentine Centre (P3, LPT)",VIRGIN MEDIA BUSINESS,853083001/004/1120,"2,611.46"
Department of Health,Leicestershire Partnership NHS Trust,16/11/20,Landline Telephone Rental / Calls,Warren Park Way 25 (PROPCO),VIRGIN MEDIA BUSINESS,853083001/004/1120,756.12
Department of Health,Leicestershire Partnership NHS Trust,16/11/20,Landline Telephone Rental / Calls,"Westcotes Group -Westcotes House (P78, LPT)",VIRGIN MEDIA BUSINESS,853083001/004/1120,"1,750.65"
Department of Health,Leicestershire Partnership NHS Trust,16/11/20,Landline Telephone Rental / Calls,Westcotes Health Centre (CHP),VIRGIN MEDIA BUSINESS,853083001/004/1120,892.71
Department of Health,Leicestershire Partnership NHS Trust,16/11/20,Landline Telephone Rental / Calls,"Winstanley Drive Health Centre (P8, LPT)",VIRGIN MEDIA BUSINESS,853083001/004/1120,446.58
Department of Health,Leicestershire Partnership NHS Trust,16/11/20,WIP Project Not in BS - Buildings excl Dwellings,Work in Progress,INTERSERVE CONSTRUCTION LTD,TMP00874,"465,092.44"
Department of Health,Leicestershire Partnership NHS Trust,16/11/20,Leased / Hired Vehicles,Autism,AUTOMOTIVE LEASING LTD,507496110,638.96
Department of Health,Leicestershire Partnership NHS Trust,16/11/20,Prep_ LT1y -Prepayments Lease Cars,Balance Sheet Collection,AUTOMOTIVE LEASING LTD,507496110,"33,186.33"
Department of Health,Leicestershire Partnership NHS Trust,16/11/20,Trade_Drs_LT1y -Lease Cars Invoicing Contrl Ac.,Balance Sheet Collection,AUTOMOTIVE LEASING LTD,507496110,769.41
Department of Health,Leicestershire Partnership NHS Trust,16/11/20,Leased / Hired Vehicles,Children’s Community Phlebotomy,AUTOMOTIVE LEASING LTD,507496110,34.32
Department of Health,Leicestershire Partnership NHS Trust,16/11/20,Leased / Hired Vehicles,City Planned Care - East - Therapy,AUTOMOTIVE LEASING LTD,507496110,102.00
Department of Health,Leicestershire Partnership NHS Trust,16/11/20,Leased / Hired Vehicles,Crisis Resolution,AUTOMOTIVE LEASING LTD,507496110,10.00
Department of Health,Leicestershire Partnership NHS Trust,16/11/20,Leased / Hired Vehicles,Crisis Response and Home Treatment,AUTOMOTIVE LEASING LTD,507496110,39.14
Department of Health,Leicestershire Partnership NHS Trust,16/11/20,Leased / Hired Vehicles,Diana Complex Care Team,AUTOMOTIVE LEASING LTD,507496110,10.00
Department of Health,Leicestershire Partnership NHS Trust,16/11/20,Leased / Hired Vehicles,East Planned Care - Blaby/Lutterworth,AUTOMOTIVE LEASING LTD,507496110,10.00
Department of Health,Leicestershire Partnership NHS Trust,16/11/20,Leased / Hired Vehicles,"East Planned Care - Oadby,Wigston & Harborough",AUTOMOTIVE LEASING LTD,507496110,10.00
Department of Health,Leicestershire Partnership NHS Trust,16/11/20,Leased / Hired Vehicles,Finance Department,AUTOMOTIVE LEASING LTD,507496110,49.04
Department of Health,Leicestershire Partnership NHS Trust,16/11/20,Leased / Hired Vehicles,Home Enteral Feeding Services,AUTOMOTIVE LEASING LTD,507496110,23.20
Department of Health,Leicestershire Partnership NHS Trust,16/11/20,Leased / Hired Vehicles,Integrated Care Service - Rutland,AUTOMOTIVE LEASING LTD,507496110,5.00
Department of Health,Leicestershire Partnership NHS Trust,16/11/20,Leased / Hired Vehicles,Integrated Specialist Palliative Care Team,AUTOMOTIVE LEASING LTD,507496110,10.00
Department of Health,Leicestershire Partnership NHS Trust,16/11/20,Leased / Hired Vehicles,Productive Ward,AUTOMOTIVE LEASING LTD,507496110,10.00
Department of Health,Leicestershire Partnership NHS Trust,16/11/20,Leased / Hired Vehicles,West Planned Care  - Hinckley Hub,AUTOMOTIVE LEASING LTD,507496110,891.00
Department of Health,Leicestershire Partnership NHS Trust,17/11/20,Computer License  Fees,Information Services,PHOENIX SOFTWARE LTD,OP/I881081,"32,120.52"
Department of Health,Leicestershire Partnership NHS Trust,18/11/20,NURSE - BAND 2 - AGENCY,Beechwood Ward,HCL NURSING,HNSI0000537,"3,316.49"
Department of Health,Leicestershire Partnership NHS Trust,18/11/20,NURSE - BAND 5 - AGENCY,Beechwood Ward,HCL NURSING,HNSI0000537,722.75
Department of Health,Leicestershire Partnership NHS Trust,18/11/20,NURSE - BAND 5 - AGENCY,City Planned Care - East,HCL NURSING,HNSI0000537,"18,164.24"
Department of Health,Leicestershire Partnership NHS Trust,18/11/20,NURSE - BAND 5 - AGENCY,City Planned Care - West,HCL NURSING,HNSI0000537,"9,307.26"
Department of Health,Leicestershire Partnership NHS Trust,18/11/20,Nurse - Band 6 -Agency,City West CMHT MHSOP,HCL NURSING,HNSI0000537,"1,069.97"
Department of Health,Leicestershire Partnership NHS Trust,18/11/20,NURSE - BAND 2 - AGENCY,Clarendon Ward,HCL NURSING,HNSI0000537,213.26
Department of Health,Leicestershire Partnership NHS Trust,18/11/20,NURSE - BAND 5 - AGENCY,Clarendon Ward,HCL NURSING,HNSI0000537,329.84
Department of Health,Leicestershire Partnership NHS Trust,18/11/20,NURSE - BAND 2 - AGENCY,Coalville Snibston Ward,HCL NURSING,HNSI0000537,289.93
Department of Health,Leicestershire Partnership NHS Trust,18/11/20,NURSE - BAND 2 - AGENCY,Coalville Ward 2,HCL NURSING,HNSI0000537,"1,073.60"
Department of Health,Leicestershire Partnership NHS Trust,18/11/20,NURSE - BAND 2 - AGENCY,Coalville Ward 4,HCL NURSING,HNSI0000537,587.27
Department of Health,Leicestershire Partnership NHS Trust,18/11/20,NURSE - BAND 5 - AGENCY,Coalville Ward 4,HCL NURSING,HNSI0000537,"1,815.89"
Department of Health,Leicestershire Partnership NHS Trust,18/11/20,NURSE - BAND 2 - AGENCY,Coleman Ward,HCL NURSING,HNSI0000537,"1,354.61"
Department of Health,Leicestershire Partnership NHS Trust,18/11/20,NURSE - BAND 5 - AGENCY,Coleman Ward,HCL NURSING,HNSI0000537,"3,181.02"
Department of Health,Leicestershire Partnership NHS Trust,18/11/20,NURSE - BAND 5 - AGENCY,Dalgliesh Ward,HCL NURSING,HNSI0000537,895.75
Department of Health,Leicestershire Partnership NHS Trust,18/11/20,NURSE - BAND 5 - AGENCY,"East Planned Care - Oadby,Wigston & Harborough",HCL NURSING,HNSI0000537,80.04
Department of Health,Leicestershire Partnership NHS Trust,18/11/20,NURSE - BAND 2 - AGENCY,Gwendolen Ward,HCL NURSING,HNSI0000537,"1,215.22"
Department of Health,Leicestershire Partnership NHS Trust,18/11/20,NURSE - BAND 5 - AGENCY,Gwendolen Ward,HCL NURSING,HNSI0000537,"5,821.05"
Department of Health,Leicestershire Partnership NHS Trust,18/11/20,NURSE - BAND 2 - AGENCY,H&B Comm Hosp East Ward,HCL NURSING,HNSI0000537,"4,836.64"
Department of Health,Leicestershire Partnership NHS Trust,18/11/20,NURSE - BAND 5 - AGENCY,H&B Comm Hosp East Ward,HCL NURSING,HNSI0000537,"1,645.78"
Department of Health,Leicestershire Partnership NHS Trust,18/11/20,NURSE - BAND 2 - AGENCY,Kirby Ward,HCL NURSING,HNSI0000537,704.71
Department of Health,Leicestershire Partnership NHS Trust,18/11/20,NURSE - BAND 2 - AGENCY,Lough Swithland Ward,HCL NURSING,HNSI0000537,240.34
Department of Health,Leicestershire Partnership NHS Trust,18/11/20,NURSE - BAND 2 - AGENCY,Rutland Ward Nursing,HCL NURSING,HNSI0000537,254.94
Department of Health,Leicestershire Partnership NHS Trust,18/11/20,NURSE - BAND 5 - AGENCY,Rutland Ward Nursing,HCL NURSING,HNSI0000537,339.98
Department of Health,Leicestershire Partnership NHS Trust,18/11/20,NURSE - BAND 2 - AGENCY,Wakerley Ward,HCL NURSING,HNSI0000537,436.24
Department of Health,Leicestershire Partnership NHS Trust,18/11/20,NURSE - BAND 5 - AGENCY,Wakerley Ward,HCL NURSING,HNSI0000537,"2,801.62"
Department of Health,Leicestershire Partnership NHS Trust,18/11/20,NURSE - BAND 2 - AGENCY,Welford Ward,HCL NURSING,HNSI0000537,698.77
Department of Health,Leicestershire Partnership NHS Trust,18/11/20,NURSE - BAND 2 - AGENCY,Beechwood Ward,HCL NURSING,HNSI0000530,"1,614.92"
Department of Health,Leicestershire Partnership NHS Trust,18/11/20,NURSE - BAND 5 - AGENCY,Beechwood Ward,HCL NURSING,HNSI0000530,"1,717.81"
Department of Health,Leicestershire Partnership NHS Trust,18/11/20,NURSE - BAND 5 - AGENCY,City Planned Care - East,HCL NURSING,HNSI0000530,"17,662.14"
Department of Health,Leicestershire Partnership NHS Trust,18/11/20,NURSE - BAND 5 - AGENCY,City Planned Care - West,HCL NURSING,HNSI0000530,"11,467.76"
Department of Health,Leicestershire Partnership NHS Trust,18/11/20,Nurse - Band 6 -Agency,City West CMHT MHSOP,HCL NURSING,HNSI0000530,"2,116.04"
Department of Health,Leicestershire Partnership NHS Trust,18/11/20,NURSE - BAND 2 - AGENCY,Clarendon Ward,HCL NURSING,HNSI0000530,468.24
Department of Health,Leicestershire Partnership NHS Trust,18/11/20,NURSE - BAND 2 - AGENCY,Coalville Snibston Ward,HCL NURSING,HNSI0000530,825.36
Department of Health,Leicestershire Partnership NHS Trust,18/11/20,NURSE - BAND 2 - AGENCY,Coalville Ward 2,HCL NURSING,HNSI0000530,"1,507.08"
Department of Health,Leicestershire Partnership NHS Trust,18/11/20,NURSE - BAND 5 - AGENCY,Coalville Ward 2,HCL NURSING,HNSI0000530,514.90
Department of Health,Leicestershire Partnership NHS Trust,18/11/20,NURSE - BAND 2 - AGENCY,Coalville Ward 4,HCL NURSING,HNSI0000530,721.00
Department of Health,Leicestershire Partnership NHS Trust,18/11/20,NURSE - BAND 5 - AGENCY,Coalville Ward 4,HCL NURSING,HNSI0000530,329.81
Department of Health,Leicestershire Partnership NHS Trust,18/11/20,NURSE - BAND 2 - AGENCY,Coleman Ward,HCL NURSING,HNSI0000530,687.57
Department of Health,Leicestershire Partnership NHS Trust,18/11/20,NURSE - BAND 5 - AGENCY,Coleman Ward,HCL NURSING,HNSI0000530,"3,089.25"
Department of Health,Leicestershire Partnership NHS Trust,18/11/20,NURSE - BAND 5 - AGENCY,"East Planned Care - Oadby,Wigston & Harborough",HCL NURSING,HNSI0000530,"1,438.26"
Department of Health,Leicestershire Partnership NHS Trust,18/11/20,NURSE - BAND 2 - AGENCY,Gwendolen Ward,HCL NURSING,HNSI0000530,"1,988.15"
Department of Health,Leicestershire Partnership NHS Trust,18/11/20,NURSE - BAND 5 - AGENCY,Gwendolen Ward,HCL NURSING,HNSI0000530,"8,058.50"
Department of Health,Leicestershire Partnership NHS Trust,18/11/20,NURSE - BAND 2 - AGENCY,H&B Comm Hosp East Ward,HCL NURSING,HNSI0000530,"1,423.42"
Department of Health,Leicestershire Partnership NHS Trust,18/11/20,NURSE - BAND 5 - AGENCY,H&B Comm Hosp East Ward,HCL NURSING,HNSI0000530,"1,600.68"
Department of Health,Leicestershire Partnership NHS Trust,18/11/20,NURSE - BAND 2 - AGENCY,Kirby Ward,HCL NURSING,HNSI0000530,113.29
Department of Health,Leicestershire Partnership NHS Trust,18/11/20,NURSE - BAND 5 - AGENCY,Kirby Ward,HCL NURSING,HNSI0000530,913.05
Department of Health,Leicestershire Partnership NHS Trust,18/11/20,NURSE - BAND 5 - AGENCY,Lough Swithland Ward,HCL NURSING,HNSI0000530,825.36
Department of Health,Leicestershire Partnership NHS Trust,18/11/20,NURSE - BAND 2 - AGENCY,St Lukes Stroke Ward,HCL NURSING,HNSI0000530,514.58
Department of Health,Leicestershire Partnership NHS Trust,18/11/20,NURSE - BAND 5 - AGENCY,St Lukes Stroke Ward,HCL NURSING,HNSI0000530,"2,108.56"
Department of Health,Leicestershire Partnership NHS Trust,18/11/20,NURSE - BAND 5 - AGENCY,St Lukes Ward 3,HCL NURSING,HNSI0000530,"2,236.29"
Department of Health,Leicestershire Partnership NHS Trust,18/11/20,NURSE - BAND 5 - AGENCY,Wakerley Ward,HCL NURSING,HNSI0000530,"3,306.12"
Department of Health,Leicestershire Partnership NHS Trust,18/11/20,NURSE - BAND 2 - AGENCY,Welford Ward,HCL NURSING,HNSI0000530,182.71
Department of Health,Leicestershire Partnership NHS Trust,18/11/20,NURSE - BAND 5 - AGENCY,Welford Ward,HCL NURSING,HNSI0000530,326.24
Department of Health,Leicestershire Partnership NHS Trust,18/11/20,NURSE - BAND 5 - AGENCY,West Planned Care  - Charnwood Hub,HCL NURSING,HNSI0000530,279.94
Department of Health,Leicestershire Partnership NHS Trust,23/11/20,Med GP Trainees,Medical Trainees,ST.HELENS & KNOWSLEY NHS TRUST,16800882,"75,000.00"
Department of Health,Leicestershire Partnership NHS Trust,23/11/20,Internal Printing (machines and ink),Estates & Facilities Central,LEXMARK INTERNATIONAL LTD,900650009331,"33,863.28"
Department of Health,Leicestershire Partnership NHS Trust,23/11/20,Crs_NHS_LT1y -Resus Inventory Supplied.,Balance Sheet Collection,SUPPLY CHAIN CO LTD,1121141790,"27,473.05"
Department of Health,Leicestershire Partnership NHS Trust,23/11/20,Gas,"Beaumont Leys Health Centre (P94, LPT)",TOTAL GAS & POWER LTD,225156387/20,768.78
Department of Health,Leicestershire Partnership NHS Trust,23/11/20,Gas,"Bradgate Unit (including Glenvale day Unit) (P7, LPT)",TOTAL GAS & POWER LTD,225156387/20,"11,301.67"
Department of Health,Leicestershire Partnership NHS Trust,23/11/20,Gas,Bridge Park Plaza - First Floor (LPT),TOTAL GAS & POWER LTD,225156387/20,754.02
Department of Health,Leicestershire Partnership NHS Trust,23/11/20,Gas,"Bridge Park Road - Units 2 and 3 (P148, LPT)",TOTAL GAS & POWER LTD,225156387/20,170.56
Department of Health,Leicestershire Partnership NHS Trust,23/11/20,Gas,"Coalville Community Hospital (P138, LPT)",TOTAL GAS & POWER LTD,225156387/20,"5,601.05"
Department of Health,Leicestershire Partnership NHS Trust,23/11/20,Gas,"Coalville Health Centre (P121, LPT)",TOTAL GAS & POWER LTD,225156387/20,398.88
Department of Health,Leicestershire Partnership NHS Trust,23/11/20,Gas,"Evington Centre (P6, LPT)",TOTAL GAS & POWER LTD,225156387/20,698.28
Department of Health,Leicestershire Partnership NHS Trust,23/11/20,Gas,"Farm Lodge (P34, LPT)",TOTAL GAS & POWER LTD,225156387/20,111.98
Department of Health,Leicestershire Partnership NHS Trust,23/11/20,Gas,"Feilding Palmer Hospital (Lutterworth) (P131, LPT)",TOTAL GAS & POWER LTD,225156387/20,"1,075.64"
Department of Health,Leicestershire Partnership NHS Trust,23/11/20,Gas,"Frith Cottages 3 & 4 (P36, LPT)",TOTAL GAS & POWER LTD,225156387/20,157.12
Department of Health,Leicestershire Partnership NHS Trust,23/11/20,Gas,HIS,TOTAL GAS & POWER LTD,225156387/20,18.04
Department of Health,Leicestershire Partnership NHS Trust,23/11/20,Gas,"Hawthorne Centre - Coalville (P14, LPT)",TOTAL GAS & POWER LTD,225156387/20,292.92
Department of Health,Leicestershire Partnership NHS Trust,23/11/20,Gas,"Hinckley and Bosworth Community Hospital (Sunnyside) (P133, LPT)",TOTAL GAS & POWER LTD,225156387/20,"4,161.66"
Department of Health,Leicestershire Partnership NHS Trust,23/11/20,Gas,"Hynca Lodge (P33, LPT)",TOTAL GAS & POWER LTD,225156387/20,301.94
Department of Health,Leicestershire Partnership NHS Trust,23/11/20,Gas,"LGH - Gwendolen House (P4, LPT)",TOTAL GAS & POWER LTD,225156387/20,"2,363.61"
Department of Health,Leicestershire Partnership NHS Trust,23/11/20,Gas,"Loughborough Hospital (P136, LPT)",TOTAL GAS & POWER LTD,225156387/20,65.97
Department of Health,Leicestershire Partnership NHS Trust,23/11/20,Gas,Mawson House (LPT),TOTAL GAS & POWER LTD,225156387/20,-95.27
Department of Health,Leicestershire Partnership NHS Trust,23/11/20,Gas,"Mett Centre (P49, LPT)",TOTAL GAS & POWER LTD,225156387/20,199.98
Department of Health,Leicestershire Partnership NHS Trust,23/11/20,Gas,"Narborough Health Centre (P117, LPT)",TOTAL GAS & POWER LTD,225156387/20,309.89
Department of Health,Leicestershire Partnership NHS Trust,23/11/20,Gas,"OSL House (P54, LPT)",TOTAL GAS & POWER LTD,225156387/20,699.91
Department of Health,Leicestershire Partnership NHS Trust,23/11/20,Gas,"Orchard Resource Centre (P15, LPT)",TOTAL GAS & POWER LTD,225156387/20,414.02
Department of Health,Leicestershire Partnership NHS Trust,23/11/20,Gas,"Rubicon Close 3 (P56, LPT)",TOTAL GAS & POWER LTD,225156387/20,59.50
Department of Health,Leicestershire Partnership NHS Trust,23/11/20,Gas,"Rutland Memorial Hospital (P134, LPT)",TOTAL GAS & POWER LTD,225156387/20,"1,393.92"
Department of Health,Leicestershire Partnership NHS Trust,23/11/20,Gas,"Shepshed Health Centre (P123, LPT)",TOTAL GAS & POWER LTD,225156387/20,381.49
Department of Health,Leicestershire Partnership NHS Trust,23/11/20,Gas,"Springfield Road Health Centre (P92, LPT)",TOTAL GAS & POWER LTD,225156387/20,317.00
Department of Health,Leicestershire Partnership NHS Trust,23/11/20,Gas,"Stewart House (P61, LPT)",TOTAL GAS & POWER LTD,225156387/20,"1,796.42"
Department of Health,Leicestershire Partnership NHS Trust,23/11/20,Gas,"Swithland House - London Road 352 (P44, LPT)",TOTAL GAS & POWER LTD,225156387/20,582.31
Department of Health,Leicestershire Partnership NHS Trust,23/11/20,Gas,"The Agnes Unit (AKA Assessment and Treatment Centre) (P85, LPT)",TOTAL GAS & POWER LTD,225156387/20,"2,317.13"
Department of Health,Leicestershire Partnership NHS Trust,23/11/20,Gas,"The Cedars (P19, LPT)",TOTAL GAS & POWER LTD,225156387/20,192.10
Department of Health,Leicestershire Partnership NHS Trust,23/11/20,Gas,"The Grange 1 (P4, LPT)",TOTAL GAS & POWER LTD,225156387/20,72.35
Department of Health,Leicestershire Partnership NHS Trust,23/11/20,Gas,"The Grange 2 (P41, LPT)",TOTAL GAS & POWER LTD,225156387/20,92.03
Department of Health,Leicestershire Partnership NHS Trust,23/11/20,Gas,"The Willows - Cordelia Close (P22, LPT)",TOTAL GAS & POWER LTD,225156387/20,"2,261.50"
Department of Health,Leicestershire Partnership NHS Trust,23/11/20,Gas,"Westcotes Group -Westcotes House (P78, LPT)",TOTAL GAS & POWER LTD,225156387/20,678.29
Department of Health,Leicestershire Partnership NHS Trust,23/11/20,Gas,"Winstanley Drive Health Centre (P8, LPT)",TOTAL GAS & POWER LTD,225156387/20,333.92
Department of Health,Leicestershire Partnership NHS Trust,23/11/20,Telephone equipment,"Evington Centre (P6, LPT)",VIRGIN MEDIA BUSINESS,60043818,"12,757.80"
Department of Health,Leicestershire Partnership NHS Trust,23/11/20,Telephone equipment,"Frith Cottages 3 & 4 (P36, LPT)",VIRGIN MEDIA BUSINESS,60043818,"12,757.80"
Department of Health,Leicestershire Partnership NHS Trust,23/11/20,Water & Sewerage Charges,"Beaumont Leys Health Centre (P94, LPT)",WATER PLUS,0865005329/INV04081575,91.84
Department of Health,Leicestershire Partnership NHS Trust,23/11/20,Water & Sewerage Charges,Bridge Park Road (Unit C18) (LPT),WATER PLUS,0865005329/INV04081575,25.82
Department of Health,Leicestershire Partnership NHS Trust,23/11/20,Water & Sewerage Charges,"Bridge Park Road - Units 2 and 3 (P148, LPT)",WATER PLUS,0865005329/INV04081575,852.49
Department of Health,Leicestershire Partnership NHS Trust,23/11/20,Water & Sewerage Charges,"Coalville Community Hospital (P138, LPT)",WATER PLUS,0865005329/INV04081575,"1,840.46"
Department of Health,Leicestershire Partnership NHS Trust,23/11/20,Water & Sewerage Charges,"Coalville Health Centre (P121, LPT)",WATER PLUS,0865005329/INV04081575,259.29
Department of Health,Leicestershire Partnership NHS Trust,23/11/20,Water & Sewerage Charges,"Evington Centre (P6, LPT)",WATER PLUS,0865005329/INV04081575,"1,599.51"
Department of Health,Leicestershire Partnership NHS Trust,23/11/20,Water & Sewerage Charges,"Feilding Palmer Hospital (Lutterworth) (P131, LPT)",WATER PLUS,0865005329/INV04081575,51.16
Department of Health,Leicestershire Partnership NHS Trust,23/11/20,Water & Sewerage Charges,HIS,WATER PLUS,0865005329/INV04081575,59.56
Department of Health,Leicestershire Partnership NHS Trust,23/11/20,Water & Sewerage Charges,Hinckley & District Hospital (PROPCO),WATER PLUS,0865005329/INV04081575,111.39
Department of Health,Leicestershire Partnership NHS Trust,23/11/20,Water & Sewerage Charges,"Hinckley and Bosworth Community Hospital (Sunnyside) (P133, LPT)",WATER PLUS,0865005329/INV04081575,"8,245.30"
Department of Health,Leicestershire Partnership NHS Trust,23/11/20,Water & Sewerage Charges,"Hynca Lodge (P33, LPT)",WATER PLUS,0865005329/INV04081575,187.02
Department of Health,Leicestershire Partnership NHS Trust,23/11/20,Water & Sewerage Charges,"Loughborough Hospital (P136, LPT)",WATER PLUS,0865005329/INV04081575,"3,807.80"
Department of Health,Leicestershire Partnership NHS Trust,23/11/20,Water & Sewerage Charges,"Narborough Health Centre (P117, LPT)",WATER PLUS,0865005329/INV04081575,946.96
Department of Health,Leicestershire Partnership NHS Trust,23/11/20,Water & Sewerage Charges,"OSL House (P54, LPT)",WATER PLUS,0865005329/INV04081575,334.63
Department of Health,Leicestershire Partnership NHS Trust,23/11/20,Water & Sewerage Charges,"Orchard Resource Centre (P15, LPT)",WATER PLUS,0865005329/INV04081575,395.80
Department of Health,Leicestershire Partnership NHS Trust,23/11/20,Water & Sewerage Charges,"Prince Philip House (P96, LPT)",WATER PLUS,0865005329/INV04081575,203.91
Department of Health,Leicestershire Partnership NHS Trust,23/11/20,Water & Sewerage Charges,Rothesay -  London Road 352A (LPT),WATER PLUS,0865005329/INV04081575,503.81
Department of Health,Leicestershire Partnership NHS Trust,23/11/20,Water & Sewerage Charges,"Rubicon Close 3 (P56, LPT)",WATER PLUS,0865005329/INV04081575,59.59
Department of Health,Leicestershire Partnership NHS Trust,23/11/20,Water & Sewerage Charges,"Rutland Memorial Hospital (P134, LPT)",WATER PLUS,0865005329/INV04081575,870.45
Department of Health,Leicestershire Partnership NHS Trust,23/11/20,Water & Sewerage Charges,"Shepshed Health Centre (P123, LPT)",WATER PLUS,0865005329/INV04081575,277.94
Department of Health,Leicestershire Partnership NHS Trust,23/11/20,Water & Sewerage Charges,"Springfield Road Health Centre (P92, LPT)",WATER PLUS,0865005329/INV04081575,228.12
Department of Health,Leicestershire Partnership NHS Trust,23/11/20,Water & Sewerage Charges,"Stewart House (P61, LPT)",WATER PLUS,0865005329/INV04081575,899.82
Department of Health,Leicestershire Partnership NHS Trust,23/11/20,Water & Sewerage Charges,"Swithland House - London Road 352 (P44, LPT)",WATER PLUS,0865005329/INV04081575,432.21
Department of Health,Leicestershire Partnership NHS Trust,23/11/20,Water & Sewerage Charges,"The Agnes Unit (AKA Assessment and Treatment Centre) (P85, LPT)",WATER PLUS,0865005329/INV04081575,731.12
Department of Health,Leicestershire Partnership NHS Trust,23/11/20,Water & Sewerage Charges,"The Cedars (P19, LPT)",WATER PLUS,0865005329/INV04081575,269.47
Department of Health,Leicestershire Partnership NHS Trust,23/11/20,Water & Sewerage Charges,"The Grange 1 (P4, LPT)",WATER PLUS,0865005329/INV04081575,88.17
Department of Health,Leicestershire Partnership NHS Trust,23/11/20,Water & Sewerage Charges,"The Grange 2 (P41, LPT)",WATER PLUS,0865005329/INV04081575,85.57
Department of Health,Leicestershire Partnership NHS Trust,23/11/20,Water & Sewerage Charges,"The Willows - Cordelia Close (P22, LPT)",WATER PLUS,0865005329/INV04081575,"1,384.56"
Department of Health,Leicestershire Partnership NHS Trust,23/11/20,Water & Sewerage Charges,"Westcotes Group - Tanglewood Resource Centre (P77, LPT)",WATER PLUS,0865005329/INV04081575,131.86
Department of Health,Leicestershire Partnership NHS Trust,23/11/20,Water & Sewerage Charges,"Westcotes Group -Westcotes House (P78, LPT)",WATER PLUS,0865005329/INV04081575,96.56
Department of Health,Leicestershire Partnership NHS Trust,23/11/20,FP10'S,Adult City Drugs,NHS BUS SERVICES AUTHORITY,1000067191,"23,216.10"
Department of Health,Leicestershire Partnership NHS Trust,23/11/20,FP10'S,Adult County Drugs,NHS BUS SERVICES AUTHORITY,1000067191,"24,783.33"
Department of Health,Leicestershire Partnership NHS Trust,23/11/20,FP10'S,CAMHS Outpatients,NHS BUS SERVICES AUTHORITY,1000067191,"12,187.73"
Department of Health,Leicestershire Partnership NHS Trust,23/11/20,FP10'S,Children Services Medical,NHS BUS SERVICES AUTHORITY,1000067191,"7,914.17"
Department of Health,Leicestershire Partnership NHS Trust,23/11/20,FP10'S,Dementia Related Drugs and Investigations,NHS BUS SERVICES AUTHORITY,1000067191,"2,679.62"
Department of Health,Leicestershire Partnership NHS Trust,23/11/20,FP10'S,Eating Disorders Outpatient Service,NHS BUS SERVICES AUTHORITY,1000067191,526.38
Department of Health,Leicestershire Partnership NHS Trust,23/11/20,FP10'S,Evington Centre,NHS BUS SERVICES AUTHORITY,1000067191,25.82
Department of Health,Leicestershire Partnership NHS Trust,23/11/20,FP10'S,Forensic Services - Community,NHS BUS SERVICES AUTHORITY,1000067191,542.94
Department of Health,Leicestershire Partnership NHS Trust,23/11/20,FP10'S,LOROS Pharmacy,NHS BUS SERVICES AUTHORITY,1000067191,338.15
Department of Health,Leicestershire Partnership NHS Trust,23/11/20,FP10'S,Leicestershire Psych-oncology Service,NHS BUS SERVICES AUTHORITY,1000067191,117.68
Department of Health,Leicestershire Partnership NHS Trust,23/11/20,FP10'S,Liason Psychiatry Service,NHS BUS SERVICES AUTHORITY,1000067191,466.28
Department of Health,Leicestershire Partnership NHS Trust,23/11/20,FP10'S,PIER Team - Early Intervention Services,NHS BUS SERVICES AUTHORITY,1000067191,"15,685.95"
Department of Health,Leicestershire Partnership NHS Trust,23/11/20,FP10'S,Snr Med Staff (Inc Med Reps),NHS BUS SERVICES AUTHORITY,1000067191,"5,973.56"
Department of Health,Leicestershire Partnership NHS Trust,26/11/20,UHL Facilities Management SLA,Estates Central Invoices To Recharge,UHL NHS TRUST (RWE),L0246190,"927,445.43"
Department of Health,Leicestershire Partnership NHS Trust,26/11/20,Electricity,Estates & Facilities Central,UHL NHS TRUST (RWE),L0246191,"37,515.15"
Department of Health,Leicestershire Partnership NHS Trust,26/11/20,Rent,"OSL House (P54, LPT)",CABOT TRUSTEES LTD,062NOV,"41,700.00"
Department of Health,Leicestershire Partnership NHS Trust,27/11/20,Computer License  Fees,Finance Department,VERSION 1,INVSOL007760,"35,825.70"
